bitfinex-derivatives/quotes_ETHF0:USTF0_20250810
["timestamp","ask_amount","ask_price","bid_price","bid_amount"]
[1754821344172,1.5485,4228.4,4228.2,3.2078]
[1754821344376,1.5485,4228.3,4228.2,3.2078]
[1754821344776,0.6291,4227.8,4227.7,3.2078]
[1754821344979,1.5485,4227.8,4227.7,3.2078]
[1754821345175,1.5485,4227.8,4227.7,6.34409585]
[1754821345577,0.2535,4227.8,4227.7,7.45719585]
[1754821345773,0.55523512,4228.6,4228.5,0.47297]
[1754821345980,0.55523512,4229.3,4228.9,0.47292]
[1754821346280,0.9194,4229.3,4229.0,0.6027]
[1754821346477,0.2569,4229.2,4229.0,0.6027]
[1754821346688,3.2078,4229.4,4229.1,0.4729]
[1754821346881,0.47285,4229.6,4229.1,0.4729]
[1754821347075,0.9194,4229.6,4229.1,0.4729]
[1754821347276,0.9194,4229.5,4229.1,0.4729]
[1754821347482,0.9194,4229.1,4228.5,3.2078]
[1754821347678,0.47295,4228.7,4228.5,3.2078]
[1754821347879,1.39236,4228.6,4228.1,0.473]
[1754821348072,1.39236,4228.6,4228.0,3.2078]
[1754821348073,0.47296,4228.6,4228.2,0.473]
[1754821348274,0.47299,4228.3,4228.0,3.2078]
[1754821348480,0.9194,4228.1,4228.0,3.68082]
[1754821348877,0.9194,4228.1,4228.0,4.28352]
[1754821349279,1.25722372,4228.8,4227.5,3.5426]
[1754821349476,0.5104,4227.9,4227.5,3.2078]
[1754821349682,0.9194,4227.7,4227.5,3.2078]
[1754821349881,0.9194,4227.6,4227.5,3.2078]
[1754821350483,0.47308,4227.5,4227.1,0.47312]
[1754821350681,0.9194,4227.6,4227.3,0.4731]
[1754821350883,0.9194,4227.5,4227.3,0.4731]
[1754821351084,0.47306,4227.7,4227.2,0.47311]
[1754821351281,0.9194,4227.3,4227.2,0.47311]
[1754821351682,0.9194,4227.3,4227.2,1.07581]
[1754821352486,0.2535,4227.3,4227.2,1.07581]
[1754821352786,0.6659,4227.8,4227.7,0.47306]
[1754821352987,0.4731,4227.4,4227.2,3.06708673]
[1754821353183,0.6659,4227.3,4226.9,22.159]
[1754821353382,0.47312,4227.2,4226.8,0.47316]
[1754821353581,0.9194,4226.5,4226.2,3.2078]
[1754821353881,0.6659,4226.3,4226.2,3.68102]
[1754821354087,0.9194,4226.3,4226.2,3.2078]
[1754821354282,0.9194,4226.3,4226.2,3.36820551]
[1754821354589,0.9194,4226.3,4226.2,3.2078]
[1754821355386,0.9194,4226.3,4226.2,3.36847832]
[1754821355776,0.63540646,4226.3,4226.2,3.36847832]
[1754821356689,0.63540646,4226.3,4226.2,0.16067832]
[1754821357978,0.2535,4226.3,4226.2,0.81387832]
[1754821358184,0.9269,4226.3,4226.2,0.16067832]
[1754821359483,0.2535,4226.3,4226.2,0.16067832]
[1754821359687,0.9269,4226.3,4226.2,0.81387832]
[1754821360886,0.5298,4226.3,4226.2,0.81387832]
[1754821361791,0.2535,4226.3,4226.2,0.81387832]
[1754821361990,0.9269,4226.3,4226.2,0.81387832]
[1754821362491,0.9269,4226.3,4226.2,0.16067832]
[1754821363697,0.9269,4226.3,4226.2,0.81387832]
[1754821364087,0.5298,4226.3,4226.2,0.81387832]
[1754821364488,0.2535,4226.3,4226.2,1.32177832]
[1754821364690,0.8738,4226.3,4226.2,1.32177832]
[1754821364894,1.5472,4226.3,4226.2,1.32177832]
[1754821365683,0.8738,4226.3,4226.2,1.32177832]
[1754821365999,0.8738,4226.3,4226.2,4.52957832]
[1754821366192,0.7004,4226.3,4226.2,4.52957832]
[1754821366494,1.5472,4226.3,4226.2,3.36847832]
[1754821366790,0.7065,4226.3,4226.2,4.52957832]
[1754821367296,0.2763,4226.7,4226.6,0.4459]
[1754821367493,0.2763,4226.7,4226.6,1.63428]
[1754821367494,0.7067,4226.7,4226.6,1.63428]
[1754821367693,0.7067,4226.7,4226.6,1.79471903]
[1754821367889,0.4304,4226.7,4226.6,1.79471903]
[1754821368092,0.4304,4226.7,4226.6,1.63428]
[1754821368695,1.5474,4226.7,4226.6,1.63428]
[1754821368893,1.3707,4226.6,4226.5,0.47319]
[1754821369101,1.5474,4226.5,4226.4,0.4732]
[1754821369394,0.6203,4226.5,4226.3,0.47321]
[1754821369603,1.5474,4226.4,4226.3,0.47321]
[1754821369790,1.5474,4226.4,4226.2,3.2078]
[1754821369791,1.09351,4226.4,4226.2,3.2078]
[1754821369993,0.1767,4226.0,4225.9,0.47325]
[1754821370292,1.5474,4226.0,4225.9,0.63370749]
[1754821370792,1.5474,4226.0,4225.7,3.68108]
[1754821370999,2.02067,4225.8,4225.6,0.47329]
[1754821371199,0.9271,4225.7,4225.0,3.861]
[1754821371492,1.5474,4225.2,4225.1,1.25867313]
[1754821371992,1.5474,4225.2,4225.1,0.63387313]
[1754821374603,1.5474,4225.2,4225.1,1.65827313]
[1754821374800,1.5474,4225.2,4225.1,0.78532313]
[1754821374993,1.5474,4225.2,4225.1,0.16052313]
[1754821377305,1.5474,4225.2,4225.1,0.16071939]
[1754821379803,1.5474,4225.2,4225.1,1.18511939]
[1754821380006,1.5474,4225.2,4225.1,1.43871939]
[1754821380205,3.2078,4225.7,4225.1,1.43871939]
[1754821380206,1.5474,4225.6,4225.5,0.6248]
[1754821380403,1.5474,4225.6,4225.3,0.47332]
[1754821380602,3.68108,4225.7,4225.3,0.47332]
[1754821380603,1.5474,4225.4,4225.3,1.49772]
[1754821380802,1.5474,4225.4,4225.3,1.65863116]
[1754821381014,1.5474,4225.4,4225.3,1.91223116]
[1754821381211,1.5474,4225.4,4225.3,1.43891116]
[1754821381417,0.6734,4224.7,4224.4,3.2078]
[1754821381615,1.5474,4224.5,4224.4,3.2078]
[1754821381815,1.5474,4224.5,4224.4,3.36873151]
[1754821382015,1.5474,4224.5,4224.4,3.54763151]
[1754821382321,1.5474,4224.5,4224.4,4.39313151]
[1754821382721,1.5474,4224.5,4224.4,4.64673151]
[1754821384120,1.5474,4224.5,4224.4,3.88030921]
[1754821384314,1.5474,4224.5,4224.4,3.70180921]
[1754821384522,1.5474,4224.5,4224.4,0.49400921]
[1754821384818,1.5474,4224.5,4224.4,0.3330777]
[1754821385420,0.6137,4223.9,4223.8,3.2078]
[1754821385720,1.5502,4223.9,4223.8,3.36866797]
[1754821386313,1.5502,4223.9,4223.8,3.2078]
[1754821386719,1.5502,4223.5,4223.4,1.2749]
[1754821386910,0.2521,4223.5,4223.4,0.16078805]
[1754821387115,1.1336,4223.5,4223.4,1.43568805]
[1754821387318,1.5502,4223.5,4223.4,1.43568805]
[1754821388216,1.5502,4223.5,4223.4,0.16078805]
[1754821388514,1.5502,4223.1,4223.0,4.95628]
[1754821388720,1.5502,4223.1,4223.0,3.64424357]
[1754821389118,1.5502,4223.1,4223.0,3.36844357]
[1754821389813,1.5502,4223.1,4223.0,3.64424357]
[1754821390019,0.4166,4223.5,4223.0,4.47374357]
[1754821390220,1.5502,4223.5,4223.4,2.02403]
[1754821390525,0.2521,4223.5,4223.4,2.02403]
[1754821391925,3.2078,4223.7,4223.4,2.02403]
[1754821392122,3.2078,4223.7,4223.6,0.6208]
[1754821392318,0.6137,4223.9,4223.8,0.6729]
[1754821392519,1.0303,4223.6,4223.5,0.47352]
[1754821392827,1.5502,4223.6,4223.5,1.49142]
[1754821393323,1.5502,4223.6,4223.3,0.47353]
[1754821393522,1.5502,4223.4,4223.3,0.2758]
[1754821393920,1.5502,4223.4,4223.3,1.0179]
[1754821394222,1.5502,4223.4,4223.3,1.2749]
[1754821395427,1.5502,4223.4,4223.3,1.0179]
[1754821397017,1.5502,4223.4,4223.3,1.2749]
[1754821397419,0.1718,4223.2,4223.1,0.64916]
[1754821397624,1.1336,4223.2,4223.1,1.74846]
[1754821397827,1.5502,4223.2,4223.1,1.74846]
[1754821398030,2.02377,4223.1,4223.0,3.2078]
[1754821398928,1.1838,4223.6,4222.7,1.49151]
[1754821398929,1.5502,4222.8,4222.7,1.49151]
[1754821399129,1.5502,4222.8,4222.7,1.74851]
[1754821399629,1.5502,4222.8,4222.7,1.2749]
[1754821400832,0.8658,4222.8,4222.7,1.5505]
[1754821401125,1.5502,4223.1,4223.0,0.6208]
[1754821401323,1.5502,4223.1,4223.0,1.2749]
[1754821402027,0.4202,4223.1,4223.0,1.0179]
[1754821402230,0.4202,4223.1,4223.0,1.5505]
[1754821402618,1.5502,4223.4,4223.3,0.6208]
[1754821402923,0.6137,4223.7,4223.6,1.0943]
[1754821403129,1.5502,4223.7,4223.6,1.0943]
[1754821403530,1.5502,4223.7,4223.6,1.7484]
[1754821404031,1.5502,4223.7,4223.6,1.2749]
[1754821404227,0.47356,4223.2,4223.0,0.2758]
[1754821404427,0.6137,4222.9,4222.8,0.4736]
[1754821404623,1.5502,4222.8,4222.7,0.7022]
[1754821404828,1.5502,4222.8,4222.7,0.2758]
[1754821405030,1.5502,4222.5,4222.4,0.8423]
[1754821406232,1.5502,4222.5,4222.4,1.0179]
[1754821406728,1.77175,4222.4,4222.3,3.2078]
[1754821406928,1.77175,4222.4,4222.3,3.653]
[1754821406929,1.5502,4222.4,4222.3,3.653]
[1754821407133,1.5502,4222.4,4222.3,4.0501]
[1754821407326,1.5502,4222.4,4222.3,3.2078]
[1754821408730,0.6137,4222.0,4221.9,0.8778]
[1754821408934,1.5502,4222.0,4221.9,0.8778]
[1754821409135,1.5502,4222.0,4221.9,0.4452]
[1754821409333,0.6137,4221.7,4221.6,0.6729]
[1754821409524,1.5502,4221.7,4221.6,1.2749]
[1754821409729,0.8598,4221.7,4221.6,1.5505]
[1754821409929,0.592,4221.7,4221.6,1.5505]
[1754821410330,0.8598,4221.7,4221.6,1.5505]
[1754821410526,0.592,4222.0,4221.9,0.6208]
[1754821410735,0.8658,4222.0,4221.9,1.5505]
[1754821410938,1.5502,4222.0,4221.9,1.0179]
[1754821411236,1.5502,4222.0,4221.9,0.2758]
[1754821411937,1.5502,4222.0,4221.9,1.2749]
[1754821413527,1.5502,4222.0,4221.9,1.0179]
[1754821414338,1.5502,4222.0,4221.9,1.35140358]
[1754821418038,5.23169,4222.0,4221.9,1.35140358]
[1754821419446,4.758,4222.0,4221.9,0.33350358]
[1754821419746,2.02012,4221.7,4221.6,1.2741]
[1754821419938,2.02012,4221.7,4221.6,1.60770351]
[1754821420539,1.5464,4221.7,4221.6,1.60770351]
[1754821421045,1.5464,4221.7,4221.6,2.08144351]
[1754821424250,1.1381,4221.7,4221.6,2.34814351]
[1754821425851,1.5464,4221.7,4221.6,2.34814351]
[1754821426154,1.1381,4221.7,4221.6,2.34814351]
[1754821426946,1.5464,4221.7,4221.6,2.34814351]
[1754821427551,3.2078,4222.0,4221.8,0.47371]
[1754821427746,3.2078,4222.0,4221.9,0.33360351]
[1754821428151,4.2371,4222.5,4222.4,0.6162]
[1754821428448,4.4974,4222.5,4222.4,1.61780351]
[1754821428654,3.2078,4222.5,4222.4,1.88450351]
[1754821428855,0.8778,4223.1,4222.6,0.9347]
[1754821429046,0.8778,4223.1,4223.0,1.08977]
[1754821429242,1.5464,4223.1,4223.0,2.09184856]
[1754821429654,1.5464,4223.1,4223.0,2.09189033]
[1754821429853,0.6985,4223.1,4223.0,2.35859033]
[1754821430155,0.2568,4223.1,4223.0,2.35859033]
[1754821430452,0.2568,4223.1,4223.0,1.88502033]
[1754821430453,1.5464,4223.1,4223.0,1.88502033]
[1754821430756,1.5464,4223.1,4223.0,1.61832033]
[1754821430952,3.4681,4223.2,4223.1,0.668]
[1754821431154,4.0891,4223.2,4223.1,1.88502033]
[1754821431653,4.7542,4223.2,4223.1,1.88502033]
[1754821431850,4.7542,4223.2,4223.1,1.61832033]
[1754821435256,4.7542,4223.2,4223.1,1.61851383]
[1754821437255,5.31603968,4223.2,4223.1,1.61851383]
[1754821438354,5.31603968,4223.2,4223.1,1.35141383]
[1754821439254,5.31603968,4223.2,4223.1,1.61851383]
[1754821439454,5.78959968,4223.2,4223.1,2.09208383]
[1754821439650,5.78959968,4223.2,4223.1,1.61851383]
[1754821440053,5.78959968,4223.2,4223.1,1.35141383]
[1754821440555,5.78959968,4223.2,4223.1,0.33431383]
[1754821440753,0.47362,4222.7,4222.4,0.47364]
[1754821440951,1.5464,4222.5,4222.4,0.47364]
[1754821441152,0.621,4222.0,4221.9,0.6162]
[1754821441354,0.621,4222.0,4221.9,1.70966232]
[1754821441553,0.621,4222.0,4221.9,2.18336232]
[1754821441757,1.5464,4222.5,4222.4,1.08984]
[1754821441954,5.04852,4222.7,4222.6,1.2838]
[1754821442254,5.78919765,4222.7,4222.6,1.5509]
[1754821442453,5.78919765,4222.7,4222.6,1.2838]
[1754821443056,5.78919765,4222.7,4222.6,1.5509]
[1754821445060,0.91534,4222.4,4222.3,0.4334]
[1754821445360,1.5343,4221.9,4221.8,2.0279]
[1754821445557,1.2734,4221.9,4221.8,2.18660694]
[1754821445960,1.5343,4221.9,4221.8,0.59431269]
[1754821446257,1.5343,4221.9,4221.8,0.4356]
[1754821446949,1.08941,4221.8,4221.7,3.2078]
[1754821447154,1.74181,4221.8,4221.7,3.2078]
[1754821447458,1.08943,4221.6,4221.5,0.6085]
[1754821447763,1.2754,4221.6,4221.5,1.5465]
[1754821448164,1.529,4221.6,4221.5,1.5465]
[1754821448473,0.4737,4221.9,4221.8,0.1691]
[1754821448762,1.343,4221.9,4221.8,1.5465]
[1754821449664,2.0027,4221.9,4221.8,1.5465]
[1754821450861,1.529,4221.9,4221.8,1.5465]
[1754821456668,1.529,4221.9,4221.8,1.2671]
[1754821457071,1.529,4221.9,4221.8,1.5465]
[1754821459673,1.2681,4221.9,4221.8,1.5465]
[1754821459971,1.529,4221.9,4221.8,1.5465]
[1754821465081,1.2681,4221.5,4221.4,2.28570735]
[1754821465280,1.529,4221.5,4221.4,3.03885735]
[1754821465675,1.2681,4221.5,4221.4,3.03885735]
[1754821465875,1.2681,4221.5,4221.4,3.19766386]
[1754821466379,1.2681,4221.5,4221.4,3.19770097]
[1754821467080,1.2681,4221.5,4221.4,2.44455097]
[1754821467286,1.529,4221.5,4221.4,2.44459344]
[1754821467583,1.529,4221.5,4221.4,1.17749344]
[1754821467777,1.529,4221.5,4221.4,1.01860735]
[1754821467977,1.529,4221.5,4220.2,1.69603184]
[1754821467978,0.9465,4220.3,4220.2,1.2671]
[1754821468286,1.3847,4220.3,4220.2,1.14801276]
[1754821468474,1.2001,4219.8,4219.7,0.3806]
[1754821468676,1.3847,4219.8,4219.7,1.5465]
[1754821469277,0.47389,4220.2,4219.7,0.47394]
[1754821469575,3.3815,4220.3,4220.2,1.5465]
[1754821469785,3.5661,4220.3,4220.2,1.5465]
[1754821469981,4.5925,4220.3,4219.1,3.0664958]
[1754821470185,1.3847,4219.9,4219.8,1.5465]
[1754821471377,1.3847,4219.9,4219.7,0.47394]
[1754821471583,1.0264,4219.8,4219.7,0.3529]
[1754821471882,0.3583,4219.8,4219.7,1.5465]
[1754821472184,0.1737,4219.8,4219.7,1.5465]
[1754821472581,3.5661,4220.3,4220.2,1.5465]
[1754821472790,4.5925,4220.3,4220.2,1.5465]
[1754821474086,3.5661,4220.3,4220.2,1.5465]
[1754821474287,3.3815,4220.3,4220.2,1.5465]
[1754821474482,3.2078,4220.3,4220.2,1.5465]
[1754821474680,3.5661,4220.8,4220.7,1.5465]
[1754821474881,4.3351,4220.8,4220.7,1.5465]
[1754821475183,4.5925,4220.8,4220.7,1.5465]
[1754821475989,3.2078,4220.8,4220.7,1.5465]
[1754821476982,3.2078,4221.3,4221.2,1.10947]
[1754821477187,3.2078,4221.3,4221.2,2.06117]
[1754821477387,3.3772,4221.3,4221.2,2.06117]
[1754821477587,3.5474,4221.3,4221.2,2.06117]
[1754821477787,3.8226,4221.3,4221.2,2.06117]
[1754821477987,3.5474,4221.3,4221.2,2.06117]
[1754821478880,4.3565,4221.3,4221.2,1.5874]
[1754821479590,1.1487,4221.3,4221.2,1.5874]
[1754821479987,1.09112,4221.7,4221.6,1.5874]
[1754821480191,3.2078,4221.8,4221.6,1.5874]
[1754821480192,3.68151,4221.8,4221.6,1.5874]
[1754821480392,1.4265,4221.7,4221.6,1.5874]
[1754821480594,0.81327,4222.2,4222.1,0.6357]
[1754821480896,1.90017,4222.2,4222.1,1.5874]
[1754821481281,1.4265,4222.2,4222.1,1.5874]
[1754821482983,1.4265,4222.2,4222.1,0.6357]
[1754821483186,0.2752,4222.0,4221.3,3.2078]
[1754821483385,1.4265,4221.1,4221.0,2.06119]
[1754821483586,1.4265,4221.1,4221.0,1.5874]
[1754821483786,1.4265,4221.1,4221.0,0.6357]
[1754821484190,1.4265,4221.1,4221.0,1.0299]
[1754821485187,1.4265,4221.1,4221.0,1.5874]
[1754821485388,0.3396,4221.1,4221.0,1.5874]
[1754821485689,4.1024,4221.4,4221.3,1.5874]
[1754821485893,4.3565,4221.4,4221.3,1.5874]
[1754821486292,4.6343,4221.4,4221.3,1.5874]
[1754821487889,0.2798,4220.8,4220.6,0.6735]
[1754821488088,1.4265,4220.7,4220.6,1.5874]
[1754821490089,0.6174,4220.3,4220.2,0.6357]
[1754821490295,0.6174,4220.0,4219.9,0.2749]
[1754821490495,0.6174,4219.5,4219.4,3.8435]
[1754821490791,1.9076515,4220.2,4220.1,1.5874]
[1754821490994,2.4606515,4220.2,4220.1,1.5874]
[1754821492598,1.90039,4220.2,4220.1,1.5874]
[1754821493604,0.3396,4219.6,4219.5,0.639]
[1754821493901,0.8946,4219.6,4219.5,0.9139]
[1754821494099,0.3396,4219.6,4219.5,0.9139]
[1754821494401,0.3396,4219.6,4219.5,1.5874]
[1754821494597,1.4265,4219.6,4219.5,1.5874]
[1754821494795,0.2752,4219.8,4219.7,1.5874]
[1754821494999,1.2571,4219.9,4219.8,0.1765]
[1754821495201,0.81352,4219.9,4219.8,1.5874]
[1754821495504,1.90042,4219.9,4219.8,1.5874]
[1754821495903,1.90045,4219.7,4219.6,1.5874]
[1754821496297,1.90045,4219.7,4219.4,3.2078]
[1754821496597,1.90047,4219.5,4219.4,3.4827]
[1754821496901,1.90047,4219.5,4219.4,3.6592]
[1754821497314,1.90047,4219.5,4219.4,3.8435]
[1754821497500,1.90047,4219.5,4219.4,3.2078]
[1754821498207,1.90047,4219.5,4219.4,3.4827]
[1754821498504,1.1848,4220.0,4219.0,1.5874]
[1754821498505,1.4265,4219.1,4219.0,1.5874]
[1754821498801,0.47408,4218.5,4218.2,3.2078]
[1754821499001,0.8926,4218.5,4218.4,1.5874]
[1754821499202,0.8926,4218.5,4218.2,3.2078]
[1754821499203,0.47409,4218.4,4218.2,3.2078]
[1754821499397,1.4265,4218.3,4218.2,4.7952]
[1754821499797,1.4265,4218.3,4218.2,0.6357]
[1754821500501,4.39296,4218.7,4217.5,3.2078]
[1754821500502,3.2078,4218.7,4217.5,3.2078]
[1754821500699,4.3565,4218.7,4218.6,1.5874]
[1754821500898,3.5474,4218.7,4218.6,1.5874]
[1754821501298,0.47411,4218.2,4218.1,0.2749]
[1754821501502,1.4265,4218.2,4218.1,1.5874]
[1754821501800,0.8689,4218.5,4218.4,1.3081]
[1754821501998,1.4265,4218.5,4218.4,1.5874]
[1754821502301,0.6174,4218.0,4217.9,1.5874]
[1754821502606,1.4265,4218.0,4217.9,0.2749]
[1754821502806,1.4265,4217.6,4217.5,1.5874]
[1754821503205,5.10842,4218.2,4218.1,0.4514]
[1754821503399,1.09154,4218.0,4217.9,1.0299]
[1754821503596,1.09154,4218.0,4217.9,0.6357]
[1754821503903,0.1694,4218.0,4217.9,1.5874]
[1754821504600,3.2078,4218.2,4218.1,1.5874]
[1754821504897,3.2078,4218.8,4218.7,1.5874]
[1754821507405,3.5593,4218.8,4218.7,1.5874]
[1754821507605,4.3536,4218.8,4218.7,1.5874]
[1754821507909,4.6085,4218.8,4218.7,1.5874]
[1754821508804,3.2078,4218.8,4218.7,1.5874]
[1754821509500,3.3889,4219.3,4219.2,1.5762]
[1754821510704,4.6202,4219.3,4218.8,0.47404]
[1754821510905,0.474,4219.2,4218.8,0.47404]
[1754821511213,1.1575,4218.9,4218.8,1.37044]
[1754821511605,1.1575,4218.9,4218.8,2.05024]
[1754821512008,1.4124,4218.9,4218.8,1.5762]
[1754821512206,0.7943,4218.8,4218.6,4.36166]
[1754821512410,1.4124,4218.7,4218.6,4.99366]
[1754821512613,1.4124,4218.7,4218.6,5.25806]
[1754821512915,1.4124,4218.7,4218.6,4.784]
[1754821513310,1.4124,4218.7,4218.6,3.8398]
[1754821514112,0.3632,4218.7,4218.6,4.784]
[1754821514316,1.4124,4218.7,4218.6,4.784]
[1754821516010,1.4124,4218.7,4218.6,4.2455]
[1754821516518,1.4124,4218.7,4218.6,3.2078]
[1754821517918,1.4124,4218.7,4218.6,4.784]
[1754821518112,1.1431,4218.7,4218.6,4.784]
[1754821518613,1.4124,4218.7,4218.6,4.784]
[1754821518918,1.4124,4218.7,4218.6,1.5762]
[1754821520717,0.3632,4218.7,4218.6,1.5762]
[1754821521113,0.7061,4219.0,4218.9,0.632]
[1754821521420,0.1811,4219.0,4218.9,1.5762]
[1754821522218,1.4124,4219.0,4218.9,1.5762]
[1754821528621,1.1431,4219.0,4218.9,1.5762]
[1754821528821,1.4124,4219.0,4218.9,1.5762]
[1754821529518,0.7943,4219.0,4218.4,0.47408]
[1754821529721,0.47405,4218.8,4218.5,2.21177083]
[1754821529920,1.88645,4218.8,4218.7,1.5762]
[1754821530313,1.4124,4218.8,4218.7,1.5762]
[1754821530821,1.4124,4218.8,4218.4,0.47408]
[1754821531024,0.47405,4218.8,4218.6,1.5762]
[1754821531325,0.1811,4218.7,4218.6,0.632]
[1754821531625,0.3632,4218.7,4218.6,0.632]
[1754821531826,1.1575,4218.7,4218.6,1.5762]
[1754821532526,0.3632,4218.7,4218.6,1.5762]
[1754821532724,0.47403,4218.9,4218.6,0.632]
[1754821533029,0.65513,4218.9,4218.8,1.5762]
[1754821533832,0.83723,4218.9,4218.8,1.5762]
[1754821534126,1.10733,4218.9,4218.8,1.5762]
[1754821534430,0.47402,4219.0,4218.8,1.5762]
[1754821534624,1.37662,4219.0,4218.9,1.3964]
[1754821534831,1.63162,4219.0,4218.9,1.5762]
[1754821535430,1.88652,4219.0,4218.9,1.5762]
[1754821539434,1.4125,4219.0,4218.9,1.5762]
[1754821542331,0.55999787,4219.1,4218.9,1.73473832]
[1754821542525,3.3795,4219.3,4219.2,0.8781]
[1754821542728,4.3368,4219.3,4219.2,1.7197374]
[1754821543129,5.16899787,4219.3,4219.2,1.7197374]
[1754821543339,27.05499787,4219.3,4219.2,1.7197374]
[1754821543537,1.96119787,4219.3,4219.2,1.7197374]
[1754821543738,1.4012,4219.3,4219.2,1.7197374]
[1754821543937,1.96119787,4219.3,4219.2,1.7197374]
[1754821544637,1.4012,4219.3,4219.2,1.7197374]
[1754821544840,23.2872,4219.3,4219.2,1.7197374]
[1754821545139,23.84719787,4219.3,4219.2,1.5612]
[1754821545740,1.96119787,4219.3,4219.2,1.5612]
[1754821545936,1.4012,4219.3,4219.2,1.5612]
[1754821547141,23.2852,4219.3,4219.2,1.5612]
[1754821548544,1.4012,4219.3,4219.2,1.5612]
[1754821548839,1.1296,4219.3,4219.2,1.5612]
[1754821549043,0.1717,4219.7,4219.6,1.5612]
[1754821549243,0.73433684,4219.7,4219.6,1.5612]
[1754821549440,0.56263684,4219.7,4219.6,1.5612]
[1754821549634,3.8102,4219.9,4219.8,1.5612]
[1754821549938,3.5551,4219.9,4219.8,1.5612]
[1754821550145,3.2078,4219.9,4219.8,1.5612]
[1754821550347,3.94212508,4220.4,4220.3,2.03507]
[1754821550542,3.2078,4220.4,4220.3,2.03507]
[1754821553846,3.2078,4220.9,4220.8,0.6072]
[1754821554045,3.3795,4220.9,4220.8,1.5612]
[1754821554445,4.3368,4220.9,4220.8,1.5612]
[1754821556147,3.3795,4220.9,4220.8,1.5612]
[1754821556942,3.2078,4220.9,4220.8,1.5612]
[1754821558947,1.1296,4221.4,4221.3,0.6072]
[1754821559248,1.4012,4221.4,4221.3,1.5612]
[1754821560244,0.47381,4220.9,4220.3,0.954]
[1754821560451,1.87501,4220.9,4220.8,1.3886]
[1754821560652,3.48,4221.5,4221.4,0.4346]
[1754821560853,3.8273,4221.5,4221.4,1.5612]
[1754821561450,4.354,4221.5,4221.4,1.5612]
[1754821561751,3.5551,4221.5,4221.4,1.5612]
[1754821562053,1.129,4221.8,4221.7,1.5612]
[1754821562252,1.4012,4221.8,4221.7,1.5612]
[1754821562647,1.1296,4221.8,4221.7,1.5612]
[1754821562847,0.1717,4221.8,4221.7,1.5612]
[1754821563451,3.2078,4222.0,4221.9,1.5612]
[1754821564040,4.30099,4222.0,4221.6,0.2696]
[1754821564243,0.8911,4221.6,4221.5,1.2903]
[1754821564452,0.8911,4221.6,4221.3,0.74465]
[1754821564650,0.8911,4221.4,4221.3,1.119]
[1754821564855,1.4012,4221.4,4221.3,1.119]
[1754821566153,1.4012,4221.4,4221.3,1.3865]
[1754821566456,0.4329,4221.1,4220.5,0.6807]
[1754821566657,1.3908,4220.8,4220.7,0.4321]
[1754821566950,1.3908,4220.8,4220.7,0.6095]
[1754821567151,1.3908,4220.8,4220.7,1.5577]
[1754821578373,1.86462,4220.8,4220.7,1.5577]
[1754821578874,1.3908,4220.8,4220.7,1.5577]
[1754821579269,1.3908,4220.8,4220.7,1.71505475]
[1754821584282,1.3908,4220.8,4220.7,1.71523085]
[1754821586084,1.3908,4220.8,4220.7,1.5577]
[1754821587882,0.1688,4220.9,4220.8,1.2947]
[1754821588083,0.1688,4220.9,4220.8,1.5577]
[1754821589185,0.5345,4221.0,4220.9,1.08331]
[1754821589387,0.47377,4221.3,4220.9,1.08331]
[1754821589589,0.9579,4221.1,4221.0,1.5577]
[1754821590786,0.56199179,4221.7,4221.5,0.877]
[1754821590988,3.2078,4221.8,4221.7,1.5577]
[1754821592283,4.0867,4221.8,4221.7,1.5577]
[1754821592592,4.3413,4221.8,4221.7,1.5577]
[1754821594891,1.1335,4221.8,4221.7,1.5577]
[1754821598292,0.3444,4221.8,4221.5,3.2078]
[1754821598487,0.6287,4221.4,4221.3,2.02046]
[1754821598694,1.161,4221.4,4221.3,2.17867154]
[1754821598896,1.4356,4221.4,4221.3,2.17867154]
[1754821599191,1.4356,4221.4,4221.3,2.02046]
[1754821599588,1.4356,4221.4,4221.3,1.0054]
[1754821599787,0.8069,4221.3,4221.0,1.41259]
[1754821599987,0.6287,4221.3,4221.2,0.47377]
[1754821600383,0.2546,4221.2,4221.1,1.41258]
[1754821600583,1.4356,4221.2,4221.0,0.47379]
[1754821600787,1.4356,4221.1,4221.0,0.47379]
[1754821600993,1.4356,4221.1,4221.0,1.02950522]
[1754821601192,1.4356,4221.1,4221.0,0.55571522]
[1754821601390,1.4356,4221.1,4221.0,1.35191522]
[1754821601595,0.6287,4220.8,4220.7,0.6079]
[1754821601896,0.6287,4220.8,4220.7,1.5467]
[1754821602392,1.4356,4220.8,4220.7,1.5467]
[1754821605597,0.356,4220.8,4220.5,0.47385]
[1754821605787,0.6287,4220.8,4220.7,1.5467]
[1754821606396,1.4362,4220.8,4220.7,1.5467]
[1754821607197,1.4362,4220.6,4220.5,2.02055]
[1754821607399,1.4362,4220.6,4220.5,2.1787713]
[1754821608992,0.5523,4221.3,4221.0,0.4738]
[1754821609300,1.4362,4221.3,4221.2,1.5467]
[1754821610589,4.644,4221.3,4221.2,1.5467]
[1754821610998,1.4362,4221.3,4221.2,1.5467]
[1754821614296,0.47377,4221.2,4220.9,0.4738]
[1754821614500,1.90997,4221.2,4221.1,1.5467]
[1754821615102,0.56197521,4221.7,4220.5,3.2078]
[1754821615103,0.356,4220.8,4220.7,1.08172]
[1754821615302,1.1635,4220.8,4220.7,1.23996072]
[1754821615498,0.47379,4221.1,4220.7,1.23996072]
[1754821615703,0.6287,4221.1,4221.0,0.6079]
[1754821615905,0.356,4221.1,4221.0,1.5467]
[1754821616105,0.82975,4221.4,4221.3,0.6079]
[1754821616301,1.63725,4221.4,4221.3,1.5467]
[1754821617205,1.90995,4221.4,4221.3,1.5467]